[Event "*** Titled Tuesday Blitz"]
[Site "Chess.com"]
[Date "2020.05.19"]
[Round "7"]
[White "garicradomir"]
[Black "kintoho"]
[Result "1-0"]
[WhiteElo "2299"]
[BlackElo "2421"]
[TimeControl "180+1"]
[EndTime "13:22:48 PDT"]
[Termination "garicradomir won by resignation"]

1. e4 {[%clk 0:03:00.9]} 1... c6 {[%clk 0:03:00]} 2. d4 {[%clk 0:02:56.4]} 2...
d5 {[%clk 0:02:59.9]} 3. exd5 {[%clk 0:02:56.1]} 3... cxd5 {[%clk 0:02:59.5]} 4.
Bd3 {[%clk 0:02:56.3]} 4... Nf6 {[%clk 0:02:58.9]} 5. c3 {[%clk 0:02:55.2]} 5...
g6 {[%clk 0:02:58.9]} 6. h3 {[%clk 0:02:50.8]} 6... Bg7 {[%clk 0:02:58.9]} 7.
Nf3 {[%clk 0:02:49.7]} 7... O-O {[%clk 0:02:58.7]} 8. O-O {[%clk 0:02:48.6]}
8... Nc6 {[%clk 0:02:58.9]} 9. Re1 {[%clk 0:02:48.2]} 9... e6 {[%clk 0:02:57.3]}
10. Bg5 {[%clk 0:02:47.1]} 10... h6 {[%clk 0:02:56.2]} 11. Bf4 {[%clk
0:02:44.3]} 11... Bd7 {[%clk 0:02:50.2]} 12. Ne5 {[%clk 0:02:41.2]} 12... Be8
{[%clk 0:02:39.4]} 13. Nd2 {[%clk 0:02:39.2]} 13... Nxe5 {[%clk 0:02:38.7]} 14.
Bxe5 {[%clk 0:02:38.5]} 14... Nd7 {[%clk 0:02:37.2]} 15. Bxg7 {[%clk 0:02:37.7]}
15... Kxg7 {[%clk 0:02:37.6]} 16. Nf3 {[%clk 0:02:37.4]} 16... Qf6 {[%clk
0:02:37]} 17. Ne5 {[%clk 0:02:36.5]} 17... Nxe5 {[%clk 0:02:36.8]} 18. Rxe5
{[%clk 0:02:35.1]} 18... b5 {[%clk 0:02:33.5]} 19. a3 {[%clk 0:02:34.5]} 19...
a5 {[%clk 0:02:33.1]} 20. Qe2 {[%clk 0:02:31.1]} 20... Rb8 {[%clk 0:02:32.5]}
21. Re3 {[%clk 0:02:17.8]} 21... Qh4 {[%clk 0:02:20.9]} 22. Kh2 {[%clk
0:02:14.2]} 22... Bd7 {[%clk 0:02:19.5]} 23. g3 {[%clk 0:02:13.5]} 23... Qe7
{[%clk 0:02:12.1]} 24. h4 {[%clk 0:02:07.8]} 24... Rb7 {[%clk 0:01:59.6]} 25.
Qf3 {[%clk 0:02:06]} 25... Qf6 {[%clk 0:01:58.6]} 26. Qe2 {[%clk 0:02:03.2]}
26... Qe7 {[%clk 0:01:50.4]} 27. Qf3 {[%clk 0:01:48.8]} 27... Qd6 {[%clk
0:01:49.6]} 28. h5 {[%clk 0:01:42.5]} 28... g5 {[%clk 0:01:47.5]} 29. Rae1
{[%clk 0:01:38.8]} 29... f5 {[%clk 0:01:43]} 30. Re5 {[%clk 0:01:34.8]} 30...
Rf6 {[%clk 0:01:33]} 31. b4 {[%clk 0:01:29.1]} 31... axb4 {[%clk 0:01:31]} 32.
axb4 {[%clk 0:01:30]} 32... Rc7 {[%clk 0:01:30.7]} 33. Bb1 {[%clk 0:01:29.7]}
33... Qc6 {[%clk 0:01:25.2]} 34. R1e3 {[%clk 0:01:27.4]} 34... Bc8 {[%clk
0:01:24.7]} 35. Qd1 {[%clk 0:01:21.8]} 35... f4 {[%clk 0:01:20]} 36. gxf4 {[%clk
0:01:11.1]} 36... gxf4 {[%clk 0:01:13.1]} 37. Rh3 {[%clk 0:01:06.2]} 37... Qe8
{[%clk 0:01:03.2]} 38. Qd3 {[%clk 0:01:03.2]} 38... Qf7 {[%clk 0:01:00.5]} 39.
Rh4 {[%clk 0:00:57.6]} 39... Bd7 {[%clk 0:00:55.1]} 40. Rg4+ {[%clk 0:00:56.5]}
40... Kf8 {[%clk 0:00:55.2]} 41. Rg6 {[%clk 0:00:55.6]} 41... Be8 {[%clk
0:00:44.5]} 42. Re1 {[%clk 0:00:43.5]} 42... Rxg6 {[%clk 0:00:44.1]} 43. hxg6
{[%clk 0:00:43.2]} 43... Qf6 {[%clk 0:00:44.3]} 44. Qh3 {[%clk 0:00:27.4]} 44...
Kg7 {[%clk 0:00:35.9]} 45. Rxe6 {[%clk 0:00:25.8]} 45... Rxc3 {[%clk 0:00:31.2]}
46. Qxc3 {[%clk 0:00:19.8]} 46... Qxe6 {[%clk 0:00:30.6]} 47. Qc7+ {[%clk
0:00:20.2]} 47... Kf8 {[%clk 0:00:27.3]} 48. Qxf4+ {[%clk 0:00:14.1]} 48... Kg7
{[%clk 0:00:24.9]} 49. Qc7+ {[%clk 0:00:13.8]} 49... Kf6 {[%clk 0:00:24.5]} 50.
g7 {[%clk 0:00:12.3]} 50... Bf7 {[%clk 0:00:24.2]} 51. Bh7 {[%clk 0:00:08.8]}
51... Kxg7 {[%clk 0:00:23.6]} 52. Bd3 {[%clk 0:00:07]} 52... Qg4 {[%clk
0:00:22.5]} 53. Qg3 {[%clk 0:00:06.2]} 53... Qxg3+ {[%clk 0:00:20.4]} 54. Kxg3
{[%clk 0:00:07.1]} 54... Be8 {[%clk 0:00:20.4]} 55. Kf4 {[%clk 0:00:06.6]} 55...
Kf6 {[%clk 0:00:20.7]} 56. Be2 {[%clk 0:00:05.9]} 56... Bd7 {[%clk 0:00:20.4]}
57. Bf3 {[%clk 0:00:05.3]} 57... Be6 {[%clk 0:00:20.1]} 58. Bg2 {[%clk
0:00:04.4]} 58... h5 {[%clk 0:00:19]} 59. Bf1 {[%clk 0:00:04.3]} 59... h4 {[%clk
0:00:18.7]} 60. Bxb5 {[%clk 0:00:01.8]} 60... h3 {[%clk 0:00:18.5]} 61. Bf1
{[%clk 0:00:02.7]} 61... h2 {[%clk 0:00:17.9]} 62. Bg2 {[%clk 0:00:02.9]} 62...
Bf5 {[%clk 0:00:15.8]} 63. Kg3 {[%clk 0:00:02.7]} 63... Be4 {[%clk 0:00:15.6]}
64. Kxh2 {[%clk 0:00:02.8]} 64... Bd3 {[%clk 0:00:15.1]} 65. Bxd5 {[%clk
0:00:02.7]} 65... Kf5 {[%clk 0:00:15.4]} 66. Bg2 {[%clk 0:00:03.4]} 66... Kf4
{[%clk 0:00:15.4]} 67. Kg1 {[%clk 0:00:03]} 67... Bc4 {[%clk 0:00:15.2]} 68. Bf1
{[%clk 0:00:03]} 68... Bd5 {[%clk 0:00:14.5]} 69. Bd3 {[%clk 0:00:02.9]} 69...
Bc6 {[%clk 0:00:13.8]} 70. Kf1 {[%clk 0:00:03.2]} 70... Kf3 {[%clk 0:00:13.6]}
71. Ke1 {[%clk 0:00:03.5]} 71... Ba4 {[%clk 0:00:12.9]} 72. b5 {[%clk
0:00:04.4]} 72... Bb3 {[%clk 0:00:12.4]} 73. b6 {[%clk 0:00:04.4]} 73... Bd5
{[%clk 0:00:10.9]} 74. Ba6 {[%clk 0:00:04.1]} 74... Ke4 {[%clk 0:00:11.1]} 75.
b7 {[%clk 0:00:04.2]} 75... Bxb7 {[%clk 0:00:11.1]} 76. Bxb7+ {[%clk 0:00:05.1]}
76... Kxd4 {[%clk 0:00:11.5]} 77. Bg2 {[%clk 0:00:05.6]} 77... Ke5 {[%clk
0:00:11.8]} 78. Ke2 {[%clk 0:00:05.9]} 78... Kf4 {[%clk 0:00:12.2]} 79. f3
{[%clk 0:00:05.3]} 79... Kg3 {[%clk 0:00:12.4]} 80. Ke3 {[%clk 0:00:06.2]} 80...
Kh4 {[%clk 0:00:12.7]} 81. Ke4 {[%clk 0:00:05.9]} 81... Kg5 {[%clk 0:00:12.6]}
82. f4+ {[%clk 0:00:05.8]} 82... Kg4 {[%clk 0:00:13.1]} 83. f5 {[%clk
0:00:05.5]} 83... Kh5 {[%clk 0:00:13.2]} 84. Ke5 {[%clk 0:00:05.5]} 84... Kh6
{[%clk 0:00:13.5]} 85. Ke6 {[%clk 0:00:05.6]} 85... Kh7 {[%clk 0:00:13.3]} 86.
Ke7 {[%clk 0:00:05.3]} 86... Kg8 {[%clk 0:00:13.3]} 87. f6 {[%clk 0:00:04.8]}
87... Kh8 {[%clk 0:00:13.3]} 88. f7 {[%clk 0:00:03.8]} 88... Kh7 {[%clk
0:00:13.6]} 89. Be4+ {[%clk 0:00:03.8]} 89... Kh6 {[%clk 0:00:12.9]} 90. f8=Q+
{[%clk 0:00:04.7]} 90... Kg5 {[%clk 0:00:13.2]} 91. Qf5+ {[%clk 0:00:04.2]}
91... Kh4 {[%clk 0:00:11.9]} 92. Qg6 {[%clk 0:00:03.9]} 1-0

[Event "*** Titled Tuesday Blitz"]
[Site "Chess.com"]
[Date "2020.05.19"]
[Round "7"]
[White "Goryachkina"]
[Black "valeriocarnicelli"]
[Result "0-1"]
[WhiteElo "2623"]
[BlackElo "2563"]
[TimeControl "180+1"]
[EndTime "13:22:51 PDT"]
[Termination "valeriocarnicelli won on time"]

1. d4 {[%clk 0:03:00.9]} 1... Nf6 {[%clk 0:02:51.8]} 2. c4 {[%clk 0:03:00.1]}
2... g6 {[%clk 0:02:52.1]} 3. Nc3 {[%clk 0:02:59.4]} 3... Bg7 {[%clk 0:02:52.7]}
4. e4 {[%clk 0:02:59.1]} 4... d6 {[%clk 0:02:53.1]} 5. Be2 {[%clk 0:02:58.5]}
5... O-O {[%clk 0:02:53.5]} 6. Be3 {[%clk 0:02:58.7]} 6... Na6 {[%clk
0:02:47.6]} 7. Nf3 {[%clk 0:02:53.9]} 7... e5 {[%clk 0:02:41.5]} 8. d5 {[%clk
0:02:53.7]} 8... Nh5 {[%clk 0:02:37.6]} 9. Qd2 {[%clk 0:02:21]} 9... Qe8 {[%clk
0:02:19.9]} 10. O-O-O {[%clk 0:02:11]} 10... Nc5 {[%clk 0:02:13.1]} 11. Ne1
{[%clk 0:02:04.6]} 11... Nf4 {[%clk 0:02:11.7]} 12. Bf3 {[%clk 0:02:01.6]} 12...
a5 {[%clk 0:01:40.5]} 13. h4 {[%clk 0:02:00.3]} 13... f5 {[%clk 0:01:19.7]} 14.
g3 {[%clk 0:01:50.1]} 14... fxe4 {[%clk 0:01:17.3]} 15. Nxe4 {[%clk 0:01:49.4]}
15... Nfd3+ {[%clk 0:01:13]} 16. Nxd3 {[%clk 0:01:46.6]} 16... Nxd3+ {[%clk
0:01:13]} 17. Qxd3 {[%clk 0:01:46.9]} 17... Rxf3 {[%clk 0:01:13.2]} 18. h5
{[%clk 0:01:23.9]} 18... Bf5 {[%clk 0:01:12]} 19. h6 {[%clk 0:01:07.5]} 19...
Bh8 {[%clk 0:01:11.9]} 20. Rh4 {[%clk 0:01:01]} 20... Qa4 {[%clk 0:01:02.1]} 21.
Qe2 {[%clk 0:00:55.7]} 21... Bxe4 {[%clk 0:01:00.1]} 22. Rxe4 {[%clk 0:00:54.5]}
22... Raf8 {[%clk 0:00:59.8]} 23. a3 {[%clk 0:00:48.5]} 23... Qb3 {[%clk
0:00:55.1]} 24. Qc2 {[%clk 0:00:45.7]} 24... Qa2 {[%clk 0:00:50.3]} 25. Qb1
{[%clk 0:00:42.6]} 25... Qb3 {[%clk 0:00:48.9]} 26. Qc2 {[%clk 0:00:39.7]} 26...
Qa2 {[%clk 0:00:49]} 27. Rd3 {[%clk 0:00:36.4]} 27... Bf6 {[%clk 0:00:32.6]} 28.
Qd1 {[%clk 0:00:22.7]} 28... Qa1+ {[%clk 0:00:25.8]} 29. Kc2 {[%clk 0:00:22.1]}
29... Qxd1+ {[%clk 0:00:25.5]} 30. Rxd1 {[%clk 0:00:21.6]} 30... Be7 {[%clk
0:00:24.7]} 31. b4 {[%clk 0:00:21]} 31... axb4 {[%clk 0:00:22.8]} 32. axb4
{[%clk 0:00:21.2]} 32... Ra8 {[%clk 0:00:23]} 33. Kb2 {[%clk 0:00:21.4]} 33...
Kf7 {[%clk 0:00:18.3]} 34. c5 {[%clk 0:00:14.9]} 34... g5 {[%clk 0:00:11.3]} 35.
cxd6 {[%clk 0:00:12.6]} 35... Bxd6 {[%clk 0:00:11.6]} 36. Rc1 {[%clk 0:00:11.8]}
36... Kg6 {[%clk 0:00:11.4]} 37. Rc2 {[%clk 0:00:10.1]} 37... Kxh6 {[%clk
0:00:10.4]} 38. Rg4 {[%clk 0:00:09.6]} 38... Rg8 {[%clk 0:00:07.7]} 39. Rc1
{[%clk 0:00:08.5]} 39... Rf5 {[%clk 0:00:06.3]} 40. Rh1+ {[%clk 0:00:08]} 40...
Kg6 {[%clk 0:00:06.7]} 41. Kb3 {[%clk 0:00:06.9]} 41... h5 {[%clk 0:00:06.9]}
42. Rc4 {[%clk 0:00:07]} 42... Rgf8 {[%clk 0:00:06.4]} 43. Rxh5 {[%clk
0:00:06.3]} 43... Kxh5 {[%clk 0:00:05.4]} 44. g4+ {[%clk 0:00:06.8]} 44... Kg6
{[%clk 0:00:06.1]} 45. gxf5+ {[%clk 0:00:07.5]} 45... Rxf5 {[%clk 0:00:05.9]}
46. Kc3 {[%clk 0:00:07.6]} 46... Rf8 {[%clk 0:00:05.1]} 47. Kd3 {[%clk
0:00:07.6]} 47... Ra8 {[%clk 0:00:03.4]} 48. Bc5 {[%clk 0:00:07.7]} 48... Ra4
{[%clk 0:00:03.1]} 49. Bxd6 {[%clk 0:00:06]} 49... cxd6 {[%clk 0:00:04]} 50. Kc3
{[%clk 0:00:06.2]} 50... Ra3+ {[%clk 0:00:04.5]} 51. Kb2 {[%clk 0:00:05.9]}
51... Rf3 {[%clk 0:00:04.7]} 52. Rc2 {[%clk 0:00:06.1]} 52... Rf4 {[%clk
0:00:05]} 53. Kb3 {[%clk 0:00:06]} 53... Rd4 {[%clk 0:00:05.3]} 54. Rc7 {[%clk
0:00:06.1]} 54... b5 {[%clk 0:00:05.5]} 55. Rb7 {[%clk 0:00:04.9]} 55... Rd3+
{[%clk 0:00:05.6]} 56. Kc2 {[%clk 0:00:04.9]} 56... Rxd5 {[%clk 0:00:05.9]} 57.
Rb6 {[%clk 0:00:05.3]} 57... Kf5 {[%clk 0:00:05.9]} 58. Rb8 {[%clk 0:00:05.4]}
58... Ke4 {[%clk 0:00:06]} 59. Rf8 {[%clk 0:00:05.3]} 59... Kd4 {[%clk
0:00:05.6]} 60. Rf3 {[%clk 0:00:04.6]} 60... Kc4 {[%clk 0:00:05.5]} 61. Rg3
{[%clk 0:00:04.6]} 61... e4 {[%clk 0:00:05.2]} 62. Rg4 {[%clk 0:00:04.9]} 62...
Re5 {[%clk 0:00:05.3]} 63. f3 {[%clk 0:00:05.2]} 63... d5 {[%clk 0:00:05.9]} 64.
fxe4 {[%clk 0:00:05.3]} 64... dxe4 {[%clk 0:00:06.4]} 65. Kd2 {[%clk 0:00:05.8]}
65... Kxb4 {[%clk 0:00:06.7]} 66. Ke3 {[%clk 0:00:06.3]} 66... Ka3 {[%clk
0:00:06.7]} 67. Rg1 {[%clk 0:00:05.2]} 67... b4 {[%clk 0:00:06.7]} 68. Rc1
{[%clk 0:00:02.9]} 68... b3 {[%clk 0:00:06.5]} 69. Kd4 {[%clk 0:00:03.2]} 69...
Re8 {[%clk 0:00:06.2]} 70. Rc7 {[%clk 0:00:01.2]} 70... b2 {[%clk 0:00:05.9]}
71. Kc3 {[%clk 0:00:01.6]} 71... Ra8 {[%clk 0:00:04.1]} 72. Rb7 {[%clk
0:00:01.8]} 72... Rc8+ {[%clk 0:00:03.4]} 73. Kd2 {[%clk 0:00:02.2]} 73... Ka2
{[%clk 0:00:03.3]} 74. Ra7+ {[%clk 0:00:01.7]} 74... Kb1 {[%clk 0:00:03.6]} 75.
Rb7 {[%clk 0:00:02.2]} 75... g4 {[%clk 0:00:03]} 76. Rb4 {[%clk 0:00:02]} 76...
g3 {[%clk 0:00:02]} 77. Rxe4 {[%clk 0:00:02.2]} 77... g2 {[%clk 0:00:02.5]} 78.
Rg4 {[%clk 0:00:02.5]} 78... Rd8+ {[%clk 0:00:02.9]} 79. Kc3 {[%clk 0:00:02.2]}
79... Kc1 {[%clk 0:00:03.4]} 80. Rxg2 {[%clk 0:00:02.4]} 80... b1=Q {[%clk
0:00:03.7]} 81. Rg1+ {[%clk 0:00:02.7]} 81... Rd1 {[%clk 0:00:04]} 82. Rg2
{[%clk 0:00:02.8]} 82... Qa1+ {[%clk 0:00:04.4]} 83. Kb3 {[%clk 0:00:02.8]}
83... Qb1+ {[%clk 0:00:04.8]} 84. Kc3 {[%clk 0:00:02.9]} 84... Re1 {[%clk
0:00:05.3]} 85. Rf2 {[%clk 0:00:02.4]} 85... Re3+ {[%clk 0:00:05.3]} 86. Kd4
{[%clk 0:00:02.3]} 86... Qd3+ {[%clk 0:00:05.4]} 0-1

[Event "*** Titled Tuesday Blitz"]
[Site "Chess.com"]
[Date "2020.05.19"]
[Round "7"]
[White "2L8IWUN"]
[Black "SlavenPastar"]
[Result "1/2-1/2"]
[WhiteElo "2533"]
[BlackElo "2397"]
[TimeControl "180+1"]
[EndTime "13:23:00 PDT"]
[Termination "Game drawn by repetition"]

1. Nf3 {[%clk 0:03:00.9]} 1... d5 {[%clk 0:02:57.3]} 2. g3 {[%clk 0:03:00.9]}
2... Nf6 {[%clk 0:02:56.6]} 3. Bg2 {[%clk 0:03:01.5]} 3... g6 {[%clk 0:02:52.6]}
4. O-O {[%clk 0:03:01.7]} 4... Bg7 {[%clk 0:02:53.2]} 5. d4 {[%clk 0:03:02.4]}
5... O-O {[%clk 0:02:53.3]} 6. c4 {[%clk 0:03:03.3]} 6... c6 {[%clk 0:02:51.6]}
7. Qb3 {[%clk 0:03:02.6]} 7... Nbd7 {[%clk 0:02:42.8]} 8. Nc3 {[%clk 0:02:54.8]}
8... Nb6 {[%clk 0:02:41]} 9. cxd5 {[%clk 0:02:53.7]} 9... Nbxd5 {[%clk
0:02:38.2]} 10. Nxd5 {[%clk 0:02:47.7]} 10... cxd5 {[%clk 0:02:36.8]} 11. Bf4
{[%clk 0:02:45.4]} 11... Qb6 {[%clk 0:02:30.8]} 12. Rfc1 {[%clk 0:02:39.2]}
12... Qxb3 {[%clk 0:02:05.9]} 13. axb3 {[%clk 0:02:38.8]} 13... Ne8 {[%clk
0:02:05.5]} 14. Ne5 {[%clk 0:02:28.4]} 14... e6 {[%clk 0:02:00.1]} 15. b4 {[%clk
0:02:12.9]} 15... f6 {[%clk 0:01:51.2]} 16. Nd3 {[%clk 0:02:10.9]} 16... b6
{[%clk 0:01:50.6]} 17. e4 {[%clk 0:02:05.8]} 17... Bb7 {[%clk 0:01:48.6]} 18.
exd5 {[%clk 0:02:03.4]} 18... Bxd5 {[%clk 0:01:48.5]} 19. Bxd5 {[%clk
0:02:01.6]} 19... exd5 {[%clk 0:01:49.4]} 20. b5 {[%clk 0:02:01.1]} 20... g5
{[%clk 0:01:48]} 21. Be3 {[%clk 0:01:58.9]} 21... Nd6 {[%clk 0:01:47.8]} 22. Nb4
{[%clk 0:01:56.6]} 22... Nxb5 {[%clk 0:01:39.1]} 23. Nxd5 {[%clk 0:01:56.6]}
23... Rfd8 {[%clk 0:01:21.8]} 24. Nc7 {[%clk 0:01:39.1]} 24... Nxc7 {[%clk
0:01:20.5]} 25. Rxc7 {[%clk 0:01:40]} 25... h6 {[%clk 0:01:12]} 26. Raxa7 {[%clk
0:01:33.1]} 26... Rxa7 {[%clk 0:01:12.8]} 27. Rxa7 {[%clk 0:01:33.6]} 27... f5
{[%clk 0:01:13]} 28. Rb7 {[%clk 0:01:26.5]} 28... f4 {[%clk 0:00:54.5]} 29. gxf4
{[%clk 0:01:25]} 29... gxf4 {[%clk 0:00:53.5]} 30. Bxf4 {[%clk 0:01:25.6]} 30...
Bxd4 {[%clk 0:00:49.1]} 31. Bxh6 {[%clk 0:01:06.8]} 31... Rd6 {[%clk 0:00:45]}
32. Be3 {[%clk 0:01:06.1]} 32... Bxe3 {[%clk 0:00:34.1]} 33. fxe3 {[%clk
0:01:07]} 33... Rd1+ {[%clk 0:00:33.6]} 34. Kg2 {[%clk 0:01:00.4]} 34... Rd2+
{[%clk 0:00:34.5]} 35. Kg3 {[%clk 0:00:58.6]} 35... Rxb2 {[%clk 0:00:35.4]} 36.
h4 {[%clk 0:00:50.7]} 36... Re2 {[%clk 0:00:29.8]} 37. Kf4 {[%clk 0:00:41.3]}
37... Rh2 {[%clk 0:00:29.8]} 38. Kg5 {[%clk 0:00:36.3]} 38... Re2 {[%clk
0:00:25.5]} 39. Kf4 {[%clk 0:00:31.4]} 39... Rh2 {[%clk 0:00:25]} 40. Kg5 {[%clk
0:00:29.9]} 40... Re2 {[%clk 0:00:23.8]} 41. Kg6 {[%clk 0:00:30.3]} 41... Rg2+
{[%clk 0:00:22.6]} 42. Kh6 {[%clk 0:00:29.6]} 42... Re2 {[%clk 0:00:20.4]} 43.
Re7 {[%clk 0:00:27.6]} 43... b5 {[%clk 0:00:16.8]} 44. h5 {[%clk 0:00:27.9]}
44... Kf8 {[%clk 0:00:15.4]} 45. Re4 {[%clk 0:00:25.3]} 45... b4 {[%clk
0:00:15.1]} 46. Rxb4 {[%clk 0:00:23.4]} 46... Rxe3 {[%clk 0:00:14.9]} 47. Kh7
{[%clk 0:00:23.9]} 47... Rg3 {[%clk 0:00:13.7]} 48. Rf4+ {[%clk 0:00:20.5]}
48... Ke7 {[%clk 0:00:13]} 49. h6 {[%clk 0:00:21.4]} 49... Rg2 {[%clk 0:00:12]}
50. Rf1 {[%clk 0:00:19.7]} 50... Rg3 {[%clk 0:00:12]} 51. Kh8 {[%clk 0:00:19.4]}
51... Rg2 {[%clk 0:00:12]} 52. h7 {[%clk 0:00:18.7]} 52... Rg3 {[%clk
0:00:12.3]} 53. Rf4 {[%clk 0:00:18.3]} 53... Rg2 {[%clk 0:00:12.4]} 54. Ra4
{[%clk 0:00:18]} 54... Rg3 {[%clk 0:00:12.7]} 55. Ra8 {[%clk 0:00:17.8]} 55...
Kf7 {[%clk 0:00:12.1]} 56. Rg8 {[%clk 0:00:17.5]} 56... Rh3 {[%clk 0:00:11.8]}
57. Rg5 {[%clk 0:00:16.3]} 57... Rf3 {[%clk 0:00:09.4]} 58. Rg2 {[%clk
0:00:14.8]} 58... Rf4 {[%clk 0:00:09.5]} 59. Rg8 {[%clk 0:00:14.3]} 59... Rf3
{[%clk 0:00:08.9]} 60. Rg7+ {[%clk 0:00:14.7]} 60... Kf8 {[%clk 0:00:09.1]} 61.
Ra7 {[%clk 0:00:15.4]} 61... Rg3 {[%clk 0:00:08.6]} 62. Ra8+ {[%clk 0:00:11]}
62... Kf7 {[%clk 0:00:09]} 63. Ra7+ {[%clk 0:00:10.8]} 63... Kf8 {[%clk
0:00:09]} 64. Ra6 {[%clk 0:00:10.5]} 64... Kf7 {[%clk 0:00:08.4]} 65. Ra2 {[%clk
0:00:09.6]} 65... Rg1 {[%clk 0:00:06.6]} 66. Rf2+ {[%clk 0:00:09.9]} 66... Ke7
{[%clk 0:00:07.1]} 67. Rf5 {[%clk 0:00:08.9]} 67... Ke8 {[%clk 0:00:06.7]} 68.
Rf3 {[%clk 0:00:09.2]} 68... Ke7 {[%clk 0:00:07.1]} 69. Re3+ {[%clk 0:00:09.6]}
69... Kf7 {[%clk 0:00:07.5]} 70. Rc3 {[%clk 0:00:10.3]} 70... Kf8 {[%clk
0:00:07]} 71. Rc8+ {[%clk 0:00:10.7]} 71... Kf7 {[%clk 0:00:07.5]} 72. Rg8
{[%clk 0:00:11.6]} 72... Rh1 {[%clk 0:00:06.8]} 73. Rg7+ {[%clk 0:00:10]} 73...
Kf8 {[%clk 0:00:06.5]} 74. Rg8+ {[%clk 0:00:10.6]} 74... Kf7 {[%clk 0:00:07.1]}
75. Rg2 {[%clk 0:00:11.5]} 75... Rf1 {[%clk 0:00:07.5]} 76. Re2 {[%clk
0:00:10.4]} 76... Rf5 {[%clk 0:00:07.9]} 77. Rg2 {[%clk 0:00:09]} 77... Rf4
{[%clk 0:00:08.3]} 78. Rg7+ {[%clk 0:00:09.3]} 78... Kf8 {[%clk 0:00:08.1]} 79.
Ra7 {[%clk 0:00:10]} 79... Rf3 {[%clk 0:00:08.3]} 80. Ra8+ {[%clk 0:00:10.9]}
80... Kf7 {[%clk 0:00:08.5]} 81. Rg8 {[%clk 0:00:11.8]} 81... Rf4 {[%clk
0:00:08.6]} 82. Rg7+ {[%clk 0:00:11.2]} 82... Kf8 {[%clk 0:00:09]} 83. Rg5
{[%clk 0:00:12.1]} 83... Kf7 {[%clk 0:00:08.9]} 84. Rg3 {[%clk 0:00:12.1]} 84...
Rf2 {[%clk 0:00:08.9]} 85. Rg4 {[%clk 0:00:12.1]} 85... Rf5 {[%clk 0:00:08.9]}
86. Re4 {[%clk 0:00:11.9]} 86... Rf2 {[%clk 0:00:09]} 87. Re5 {[%clk 0:00:12]}
87... Rf3 {[%clk 0:00:09.2]} 88. Rg5 {[%clk 0:00:12.2]} 88... Rf2 {[%clk
0:00:09.5]} 89. Rg7+ {[%clk 0:00:13.1]} 89... Kf8 {[%clk 0:00:09.2]} 90. Ra7
{[%clk 0:00:13.6]} 90... Rf1 {[%clk 0:00:09]} 91. Ra8+ {[%clk 0:00:14.5]} 91...
Kf7 {[%clk 0:00:09.5]} 92. Ra3 {[%clk 0:00:13.8]} 92... Kf8 {[%clk 0:00:09.7]}
93. Ra2 {[%clk 0:00:14.2]} 93... Rf3 {[%clk 0:00:09.6]} 94. Ra1 {[%clk
0:00:13.9]} 94... Kf7 {[%clk 0:00:10]} 95. Ra2 {[%clk 0:00:14.3]} 95... Kf8
{[%clk 0:00:10.2]} 96. Rg2 {[%clk 0:00:14.7]} 96... Kf7 {[%clk 0:00:10.3]} 97.
Rg4 {[%clk 0:00:15.2]} 97... Kf8 {[%clk 0:00:10.6]} 98. Rg1 {[%clk 0:00:15.6]}
98... Kf7 {[%clk 0:00:10.8]} 99. Rg8 {[%clk 0:00:14.2]} 99... Rf4 {[%clk
0:00:10.4]} 100. Rg7+ {[%clk 0:00:11.8]} 1/2-1/2